Cogmind - Beta 13 @@@ ROGUE MODE // 2024.07.18 @ 20:46:05 Player: ivanmixo Result: Self-destructed Performance ------------- Evolutions (2) 1000 Regions Visited (4) 800 Robots Destroyed (31) 155 Value Destroyed (643) 643 Prototype IDs (0) 0 Alien Tech Used (0) 0 Bonus (16) 16 TOTAL SCORE: 2614 Bonus ------- High Alert Combat Kills 16 Cogmind --------- Core Integrity 489/550 Matter 267/300 Energy 164/265 System Corruption 0% Temperature Cool (0) Movement Treading (225) Ox1 Location -8/Materials Parts ------- > --- POWER (1) -------- Improved Ion Engine > --- PROPULSION (4) --- Advanced Treads Advanced Treads Advanced Treads > --- UTILITY (3) ------ Huge Storage Unit > --- WEAPON (3) ------- Field Laser Field Laser Assault Cannon > --- INVENTORY (25) --- Improved Ion Engine Improved Ion Engine Improved Ion Engine Improved Ion Engine Improved Ion Engine Improved Ion Engine Improved Ion Engine Disposable Heat Sink Compact Battery (200) Beam Rifle Field Laser Field Laser Assault Cannon Grenade Launcher Grenade Launcher Improved Grenade Launcher Improved Grenade Launcher Improved Grenade Launcher Improved Grenade Launcher Peak State ------------ > --- POWER ------------ Improved Ion Engine > --- PROPULSION ------- Advanced Treads Advanced Treads Advanced Treads Advanced Treads > --- UTILITY ---------- Heat Sink Huge Storage Unit Light Armor Plating > --- WEAPON ----------- Field Laser Field Laser Field Laser > --- INVENTORY -------- Improved Ion Engine Improved Ion Engine Improved Ion Engine Improved Ion Engine Improved Ion Engine Improved Ion Engine Improved Ion Engine Improved Ion Engine Wheel Wheel Wheel Disposable Heat Sink Beam Rifle Particle Gun Particle Gun Particle Gun Field Laser Assault Cannon Assault Cannon Grenade Launcher Grenade Launcher Improved Grenade Launcher Improved Grenade Launcher Improved Grenade Launcher Improved Grenade Launcher [Rating: 31] Favorites ----------- Power Improved Ion Engine Engine Improved Ion Engine Propulsion Wheel Treads Advanced Treads Wheel Wheel Utility Huge Storage Unit Device Heat Sink Storage Huge Storage Unit Processor Targeting Computer Protection Light Armor Plating Weapon Particle Cannon Energy Gun Particle Gun Energy Cannon Particle Cannon Ballistic Cannon Assault Cannon Launcher Grenade Launcher Build | -11 -10 -9 -9 -8 ------- Run | Yrd Mat Mat Min Mat Slots Evolved 4 | . . 2 . 2 Power . | . . . . . Propulsion 2 | . . 1 . 1 Utility 1 | . . . . 1 Weapon 1 | . . 1 . . Parts Attached 39 | 5 9 17 . 8 Power 4 | 1 . 1 . 2 Engine 4 | 1 . 1 . 2 Core . | . . . . . Reactor . | . . . . . Propulsion 11 | 2 2 6 . 1 Treads 4 | . . 3 . 1 Leg . | . . . . . Wheel 7 | 2 2 3 . . Hover . | . . . . . Flight . | . . . . . Utility 9 | 1 4 3 . 1 Device 3 | . 1 2 . . Storage 4 | 1 2 1 . . Processor 1 | . 1 . . . Hackware . | . . . . . Protection 1 | . . . . 1 Artifact . | . . . . . Weapon 15 | 1 3 7 . 4 Energy Gun 8 | 1 1 3 . 3 Energy Cannon 3 | . 2 1 . . Ballistic Gun . | . . . . . Ballistic Cannon 3 | . . 2 . 1 Launcher 1 | . . 1 . . Special Weapon . | . . . . . Impact Weapon . | . . . . . Slashing Weapon . | . . . . . Piercing Weapon . | . . . . . Special Melee Weapon . | . . . . . Unidentified Prototypes . | . . . . . Parts Lost 9 | . 2 3 . 4 Power 1 | . . . . 1 Propulsion 4 | . 1 2 . 1 Utility 3 | . 1 . . 2 Weapon 1 | . . 1 . . Highest Loss Streak 3 | . 2 3 . 2 To Critical Strikes . | . . . . . Average Slot Usage (%) 94 | . 91 97 100 90 Engine 11 | . 14 10 11 8 Treads 11 | . . 12 33 32 Wheel 18 | . 27 19 . . Device 7 | . 4 9 11 7 Storage 13 | . 18 11 11 9 Processor 1 | . 1 1 . . Energy Gun 12 | . 4 14 33 22 Energy Cannon 13 | . 19 14 . . Ballistic Cannon 1 | . . . . 4 Naked Turns . | . . . . . Heaviest Build 102 | 12 94 101 97 102 Greatest Support 88 | 20 20 66 66 88 Greatest Overweight (x) 9 | . 4 9 1 1 Average Overweight (x) 1 | . 1 2 1 1 Largest Inventory Capacity 25 | 8 25 25 25 25 Average Capacity 21 | 7 18 25 25 25 Most Carried 25 | 4 8 25 24 25 Average Carried 13 | 1 6 17 24 20 Final Capacity 25 | 8 25 25 25 25 Final Carried 24 | 3 8 24 24 19 Class Distribution -------------------- 48% | Gunner 41% | Mutant 9% | Tank Dominant Class ---------------- Mutant | -10/Materials Gunner | -9/Materials Gunner | -9/Mines Tank | -8/Materials Resources | -11 -10 -9 -9 -8 ----------- Run | Yrd Mat Mat Min Mat Matter Collected 617 | 201 129 190 10 87 Remotely . | . . . . . Salvage Created 709 | . 93 488 48 80 Parts 57 | . 9 42 5 1 Haulers Intercepted . | . . . . . Recyclers Shooed . | . . . . . Parts Field Recycled . | . . . . . Retrieved Matter . | . . . . . Parts Self-Destructed . | . . . . . Prevented . | . . . . . Kills | -11 -10 -9 -9 -8 ------- Run | Yrd Mat Mat Min Mat Combat Hostiles Destroyed 30 | . 6 19 3 2 Guns 12 | . . 7 3 2 Cannons 17 | . 6 11 . . AOE 1 | . . 1 . . Classes Destroyed 5 | . 2 2 . 1 Watcher 1 | . . 1 . . Swarmer 20 | . 5 12 3 . Grunt 6 | . 1 4 . 1 Sentry 3 | . . 3 . . Hunter 1 | . . . . 1 Best Kill Streak 10 | . 2 10 3 1 Combat Bots Only 10 | . 2 10 3 1 Max Kills in Single Turn 2 | . 1 1 2 1 Gunslinging 1 | . . . 1 . Exploded 1 | . . 1 . . Melee . | . . . . . Uniques/NPCs Destroyed . | . . . . . Combat | -11 -10 -9 -9 -8 -------- Run | Yrd Mat Mat Min Mat Hostile Shots Fired 195 | . 34 81 8 72 Missed 50 | . 3 25 2 20 Damage Taken 1740 | . 337 550 49 804 Core 240 | . 73 98 8 61 Absorbed by Shields . | . . . . . Core Remaining (%) 81 | 100 70 . 73 . Volleys Fired 82 | . 23 29 3 27 Largest 3 | . 2 3 3 3 Hottest 204 | . 136 204 195 195 Shots Fired 177 | . 42 77 8 50 Gun 83 | . 1 36 8 38 Cannon 92 | . 41 39 . 12 Launcher 2 | . . 2 . . Special . | . . . . . Kinetic 12 | . . . . 12 Thermal 162 | . 41 75 8 38 Explosive 2 | . . 2 . . Electromagnetic 1 | . 1 . . . Robot Hit Streak 9 | . 6 6 4 9 Robot Miss Streak 11 | . 11 5 3 2 Penetration Max . | . . . . . Secondary Targets 1 | . . . 1 . Max Gunslinging Chain 1 | . . . 1 . Shots Hit Robots 83 | . 14 34 4 31 Core Hits 34 | . 6 20 3 5 Critical Kills . | . . . . . Critical Parts Destroyed . | . . . . . Critical Strikes 2 | . . 2 . . Burn 2 | . . 2 . . Melee Attacks . | . . . . . Impact . | . . . . . Slashing . | . . . . . Piercing . | . . . . . Sneak Attacks . | . . . . . Combat Hostiles . | . . . . . Follow-up Attacks . | . . . . . Damage Inflicted 1639 | . 285 734 63 557 Guns 724 | . . 298 63 363 Cannons 887 | . 285 408 . 194 Explosions 28 | . . 28 . . Melee . | . . . . . Ramming . | . . . . . Kinetic 194 | . . . . 194 Thermal 1417 | . 285 706 63 363 Explosive 28 | . . 28 . . Electromagnetic . | . . . . . Impact . | . . . . . Slashing . | . . . . . Piercing . | . . . . . Highest Corruption 1 | . 1 . . . Average Corruption 1 | . 1 . . . Corruption Purged . | . . . . . Corruption Blocked . | . . . . . Effects 2 | . 2 . . . Message Errors 1 | . 1 . . . Data Loss (minor) 1 | . 1 . . . Overload Shots . | . . . . . Overflow Damage 6 | . . . . 6 Projectiles 6 | . . . . 6 Explosions . | . . . . . Melee . | . . . . . Knockbacks 4 | . . . . 4 Impact . | . . . . . Kinetic 4 | . . . . 4 Secondary . | . . . . . Self-Inflicted Damage . | . . . . . Shots . | . . . . . Rammed . | . . . . . Targets Rammed . | . . . . . Kicked . | . . . . . Crushed . | . . . . . Highest Temperature 590 | . 360 590 199 352 Average Temperature 167 | . 178 170 111 156 Received Heat Transfer 249 | . 30 117 . 102 Effects 10 | . 2 7 . 1 Shutdowns 2 | . . 1 . 1 Energy Bleed 1 | . . 1 . . Interference 6 | . 2 4 . . Damage (minor) 1 | . . 1 . . Siege Activations . | . . . . . Robots Corrupted . | . . . . . Combat Hostiles . | . . . . . Parts Fried . | . . . . . Impact Corruptions . | . . . . . Robots Melted . | . . . . . Combat Hostiles . | . . . . . Parts Melted 6 | . . 3 1 2 Heat Transferred 3034 | . 518 1591 148 777 Parts Sabotaged . | . . . . . Parts Stolen . | . . . . . Parts Stripped . | . . . . . Power Chain Reactions . | . . . . . Alert | -11 -10 -9 -9 -8 ------- Run | Yrd Mat Mat Min Mat Peak Influence 539 | . 166 539 209 117 Initial 139 | . . 8 139 81 Average 142 | . 44 262 202 91 Maximum Alert Level 2 | . . 2 1 . Low Security (%) 70 | 100 100 33 13 100 Level 1 27 | . . 60 86 . Level 2 2 | . . 6 . . Level 3 . | . . . . . Level 4 . | . . . . . Level 5 . | . . . . . High Security . | . . . . . Max Security . | . . . . . Squads Dispatched 6 | . . 4 . 2 Investigation 1 | . . 1 . . Extermination . | . . . . . Reinforcement 3 | . . 3 . . Assault . | . . . . . Garrison 2 | . . . . 2 Intercept . | . . . . . Searches Triggered . | . . . . . Construction Impeded . | . . . . . Haulers Reinforced . | . . . . . Active Scanning Responses . | . . . . . Cargo Convoy Interrupts . | . . . . . Stealth | -11 -10 -9 -9 -8 --------- Run | Yrd Mat Mat Min Mat Distress Signals 5 | . 1 4 . . Communications Jammed . | . . . . . Distress Signals . | . . . . . Times Spotted 43 | . 12 24 3 4 Peak Tracking Total 11 | . 5 11 3 4 Tactical Retreats 1 | . 1 . . . Traps | -11 -10 -9 -9 -8 ------- Run | Yrd Mat Mat Min Mat Traps Triggered 3 | . 3 . . . Indirectly . | . . . . . Trap Hack Attempts . | . . . . . Triggered . | . . . . . Disarmed . | . . . . . Reprogrammed . | . . . . . Reused . | . . . . . Traps Extracted . | . . . . . Installed . | . . . . . Triggered . | . . . . . Machines | -11 -10 -9 -9 -8 ---------- Run | Yrd Mat Mat Min Mat Machines Disabled 2 | . 1 1 . . Max in Single Turn 1 | . 1 1 . . Machines Repaired . | . . . . . Machines Dismantled . | . . . . . Machines Sabotaged . | . . . . . Overloaded Fab Kills . | . . . . . Hacking | -11 -10 -9 -9 -8 --------- Run | Yrd Mat Mat Min Mat Machines Accessed 3 | . . 3 . . Terminals 3 | . . 3 . . Fabricators . | . . . . . Repair Stations . | . . . . . Recycling Units . | . . . . . Scanalyzers . | . . . . . Garrison Access . | . . . . . Total Hacks 5 | . . 5 . . Successful . | . . . . . Failed 5 | . . 5 . . Catastrophic 3 | . . 3 . . Database Lockouts . | . . . . . Manual 5 | . . 5 . . Terminals 5 | . . 5 . . Fabricators . | . . . . . Repair Stations . | . . . . . Recycling Units . | . . . . . Scanalyzers . | . . . . . Garrison Access . | . . . . . Terminal Hacks . | . . . . . Fabricator Hacks . | . . . . . Repair Station Hacks . | . . . . . Recycling Unit Hacks . | . . . . . Scanalyzer . | . . . . . Garrison Access Hacks . | . . . . . Unauthorized Hacks . | . . . . . Terminals . | . . . . . Fabricators . | . . . . . Repair Stations . | . . . . . Recycling Units . | . . . . . Scanalyzers . | . . . . . Garrison Access . | . . . . . Data Cores Recovered . | . . . . . Used . | . . . . . Hacking Detections 3 | . . 3 . . Full Trace Events 1 | . . 1 . . Feedback Events . | . . . . . Feedback Blocked . | . . . . . Robot Schematics Acquired . | . . . . . Robots Built . | . . . . . Authchips . | . . . . . Time . | . . . . . Total Robot Build Rating . | . . . . . Part Schematics Acquired . | . . . . . Parts Built . | . . . . . Authchips . | . . . . . Time . | . . . . . Total Part Build Rating . | . . . . . Parts Repaired . | . . . . . Time . | . . . . . Parts Recycled . | . . . . . Recycled Matter . | . . . . . Retrieved Matter . | . . . . . Retrieved Components . | . . . . . Parts Scanalyzed . | . . . . . Part Schematics Acquired . | . . . . . Parts Damaged . | . . . . . Bothacking | -11 -10 -9 -9 -8 ------------ Run | Yrd Mat Mat Min Mat Used RIF Installer . | . . . . . Robots Hacked . | . . . . . Non-combat . | . . . . . Combat . | . . . . . Robot Hacks Applied . | . . . . . Relay Couplers Released . | . . . . . Fabnet Peak Effective % . | . . . . . Robots Rewired . | . . . . . Allies Hacked . | . . . . . Hacks Repelled . | . . . . . Allies | -11 -10 -9 -9 -8 -------- Run | Yrd Mat Mat Min Mat Total Allies . | . . . . . Largest Group . | . . . . . Highest-Rated Group . | . . . . . Highest-Rated Ally . | . . . . . Total Orders . | . . . . . Ally Attacks . | . . . . . Total Damage . | . . . . . Kills . | . . . . . Allies Corrupted . | . . . . . Allies Melted . | . . . . . Intel | -11 -10 -9 -9 -8 ------- Run | Yrd Mat Mat Min Mat Robot Analysis Total . | . . . . . Derelict Logs Recovered . | . . . . . Drone Launches . | . . . . . Drone Recoveries . | . . . . . Exploration | -11 -10 -9 -9 -8 ------------- Run | Yrd Mat Mat Min Mat Turns Passed 1447 | 41 556 572 53 225 Spaces Moved 758 | 39 398 248 20 53 Core 8 | 8 . . . . Treads 150 | . . 77 20 53 Legs . | . . . . . Wheels 600 | 31 398 171 . . Hover . | . . . . . Flight . | . . . . . Fastest Speed 50 | 50 80 125 225 225 Average Speed 132 | 73 106 156 225 225 Slowest Speed 225 | 80 140 225 225 225 Overloaded Moves . | . . . . . Propulsion Burnouts . | . . . . . Robots Hopped . | . . . . . Cave-ins Triggered . | . . . . . Exploration Rate (%) 23 | 3 67 32 8 6 Regions Visited 4 Branch Regions 1 Pre-discovered Areas . | . . . . . Known Exits Taken . | . . . . . Unknown Exits Taken 4 | 1 1 1 1 . Scrap Searched . | . . . . . Spaces Dug . | . . . . . Terrain Destroyed 12 | . . 12 . . Melee . | . . . . . Projectile . | . . . . . AOE 12 | . . 12 . . Terrain Rammed . | . . . . . Walls Destroyed . | . . . . . Machines Disabled . | . . . . . Actions | -11 -10 -9 -9 -8 --------- Run | Yrd Mat Mat Min Mat Total 1046 | 51 490 368 22 115 Wait 100 | . 36 46 . 18 Move 754 | 38 397 247 19 53 Hop . | . . . . . Pick Up 47 | 8 15 22 . 2 Fast Attach 10 | . 6 4 . . Attach 15 | 5 2 5 . 3 Detach 1 | . . 1 . . Swap 14 | . 1 8 . 5 Drop 23 | . 10 6 . 7 Fire 82 | . 23 29 3 27 Melee . | . . . . . Ram . | . . . . . Kick . | . . . . . Crush . | . . . . . Escape Stasis . | . . . . . Rewire . | . . . . . Trap . | . . . . . Miscellaneous . | . . . . . Route ------- -11/Scrapyard -10/Materials (discovered 4 exits: *Mat x2 / [*Min x2]) -9/Materials -9/Mines -8/Materials History --------- Turn | Location | Event 8 | -11/Scrapyard | Discovered new exit (range 16) 42 | -11/Scrapyard | Entered Materials 96 | -10/Materials | Discovered new exit (range 3) 256 | -10/Materials | Discovered new exit (range 13) 300 | -10/Materials | Build established: Mutant 322 | -10/Materials | Discovered new exit (range 15) 562 | -10/Materials | Discovered new exit (range 14) 598 | -10/Materials | Entered another Materials area 598 | -9/Materials | Evolved 2 slots: Propulsion x1, Weapon x1 827 | -9/Materials | Lost 3 parts (2n1w) 839 | -9/Materials | Destroyed 10 combat bots 911 | -9/Materials | Build established: Gunner 1020 | -9/Materials | Destroyed 7 combat bots 1109 | -9/Materials | Discovered new exit (range 16) 1170 | -9/Materials | Entered Mines 1198 | -9/Mines | Discovered new exit (range 9) 1223 | -9/Mines | Entered Materials 1223 | -8/Materials | Evolved 2 slots: Propulsion x1, Utility x1 1344 | -8/Materials | Garrison activated, responded to threat 1448 | -8/Materials | Self-destructed Last Messages --------------- 01397_ K-01 Serf collects debris. 01399_ Penetrated by Slug. 01400_ K-01 Serf collects debris. 01402_ Penetrated by Slug. 01403_ K-01 Serf collects debris. 01405_ Penetrated by Slug. 01406_ K-01 Serf collects debris. 01408_ Heat Sink destroyed. 01411_ Penetrated by Slug. 01411_ Imp. Ion Engine destroyed. 01412_ H-55 Commando destroyed. 01415_ K-01 Serf collects debris. 01421_ U-05 Engineer builds a Door. 01422_ K-01 Serf collects debris. 01425_ Acquired 30 matter. 01426_ K-01 Serf collects debris. 01429_ Acquired 50 matter. 01431_ K-01 Serf collects debris. 01434_ Acquired 2 matter. 01436_ Acquired 5 matter. Map ----- +----------------------------------------------------+ | ???????????????????????????????????????? | | ???????????????????????????????????????? | | ???????????????????????????????????????? | | ???????????????????????????????????????? | | ???????????????????????????????????????? | | ???????????????????????????????????????? | | ???????????????????????????????????????? | | ???????????????????????????????????????? | | ???????????????????????????????????????? | | ???????????????????????????????????????? | | ???????????????????????????????????????? | | ???????????????????????????????????????? | | ???????????????????????????????????????? | | ???????????????????????????????????????? | | ???????????????????????????????????????? | | ?????????########??????????????????????? | | ?????????# [ #???????????? ?????????? | | ?????????# [! #??????????? ??????????? | | ?????????# ! #?????????? ???????????? | | ?????????# #????????? #???????????? | | ?????????# #???????? #???????????? | | ?????????# #######? #???????????? | | ?????????####+### ##% ###?????????? | | ?????????# * %% ## ??????? | | ?????????# ! u % + ]??????? | | ?????????# @ = #?????????? | | ?????????####+### ###### ??????????? | | ?????????# "##+####???????????????? | | ?????????# " " ! ????????????? | | ?????????# # ?????????? | | ?????????# #% "" "" #????????? | | ?????????# # % ""S""??????????? | | ?????????# # """????????????? | | ?????????######## ???????????? | | ?????????????#"""""""""#####???????????? | | ????????????? # #####???????????????? | | ????????????? # #???????????????????? | | ???????????? # #???????????????????? | | ???????????? # #???????????????????? | | ??????????? " " # #???????????????????? | | ???????????? "G" ? ???????????????????? | | ???????????????? ? ????????????????????? | | ???????????????????????????????????????? | | ???????????????????????????????????????? | | ???????????????????????????????????????? | | ???????????????????????????????????????? | | ???????????????????????????????????????? | | ???????????????????????????????????????? | | ???????????????????????????????????????? | | ???????????????????????????????????????? | +----------------------------------------------------+ Best States ------------- Heat Dissipation 41 Energy Generation 12 Energy Capacity 350 Matter Stores 300 Matter Capacity 300 Sight Range 16 Terrain Scan Density 10 Armor Coverage 150 Evasion (%) 44 Targeting Accuracy 5 Recoil Reduction 4 Item Schematics ----------------- None Robot Schematics ------------------ None Fabricated ------------ Nothing Alien Tech Used ----------------- None Achievements -------------- None Challenges ------------ None Game ------ Seed DeliveryMiniNanoactuators Manual? 0 Play Time 00:21:41 Cumulative 5.8 hours Start 2024.07.18 @ 01:11:21 End 2024.07.18 @ 20:46:05 Sessions 5 Manual Loads 0 Difficulty Rogue Special Mode None Game No. 11 Rogue 11 Adventurer 0 Explorer 0 Win Type - Total 0 Types 0/0/0/0/0/0/0/0/0 Lore% 1 Gallery% 11 Achievement% 9 Wizard Run 0 Options --------- Layout 1 ASCII 0 Keyboard 0 Movement Numpad Keybinds 0 Fullscreen 2 Font 24/Smallcaps Map View 50x35 Zoom Use 0% Tactical HUD 1 Map Filters NONE Filters NONE Steam 1 RUN: e97f50fb-2b86-4205-b3be-747702b38df9